bitfinex-derivatives/quotes_ETHF0:USTF0_20230702
["timestamp","ask_amount","ask_price","bid_price","bid_amount"]
[1688275719211,1.07065635,1913.6,1913.5,11.62787]
[1688275720114,0.78394,1913.6,1913.5,11.63132121]
[1688275721313,1.07065635,1913.6,1913.5,11.63132121]
[1688275722108,1.07065635,1913.6,1913.5,8.42352121]
[1688275724710,1.07065635,1913.6,1913.5,3.13202121]
[1688275726601,0.78394,1913.6,1913.5,6.33982121]
[1688275727409,0.78394,1913.6,1913.5,16.12272121]
[1688275728715,1.07065635,1913.6,1913.5,12.91492121]
[1688275730412,1.07065635,1913.6,1913.5,16.12272121]
[1688275730611,0.78394,1913.6,1913.5,16.12272121]
[1688275737426,0.31357,1913.7,1913.5,16.12272121]
[1688275737627,0.31357,1913.7,1913.6,2.813]
[1688275737823,0.31357,1913.7,1913.6,3.12656]
[1688275738019,0.31357,1913.7,1913.6,3.13000245]
[1688275741823,0.60028635,1913.7,1913.6,3.13000245]
[1688275744721,0.60028635,1913.7,1913.6,2.81644245]
[1688275745421,0.60028635,1913.7,1913.6,3.13000245]
[1688275745623,0.60028635,1913.7,1913.6,3.53945128]
[1688275746425,0.31357,1913.7,1913.6,3.53945128]
[1688275749824,0.60028635,1913.7,1913.6,3.53945128]
[1688275752235,0.60028635,1913.7,1913.6,3.54145128]
[1688275753931,0.60028635,1913.7,1913.6,3.22789128]
[1688275754138,0.60028635,1913.7,1913.6,3.54145128]
[1688275754638,1.54041312,1913.7,1913.6,3.54145128]
[1688275754831,0.60028635,1913.7,1913.6,3.54145128]
[1688275755033,1.54041312,1913.7,1913.6,3.54145128]
[1688275755740,0.60028635,1913.7,1913.6,3.54145128]
[1688275757334,1.54041312,1913.7,1913.6,3.54145128]
[1688275759733,0.60028635,1913.7,1913.6,3.54145128]
[1688275760328,0.31357,1913.7,1913.6,3.54145128]
[1688275762144,0.60028635,1913.7,1913.6,3.54145128]
[1688275762536,1.54041312,1913.7,1913.6,3.54145128]
[1688275763838,0.60028635,1913.7,1913.6,3.54145128]
[1688275766837,1.54041312,1913.7,1913.6,3.54145128]
[1688275767044,1.25369677,1913.7,1913.6,3.54145128]
[1688275767446,0.31357,1913.7,1913.6,3.54145128]
[1688275767848,0.60028635,1913.7,1913.6,3.54145128]
[1688275770651,1.54041312,1913.7,1913.6,3.54145128]
[1688275771748,0.60028635,1913.7,1913.6,3.54145128]
[1688275772151,0.31357,1913.7,1913.6,3.54145128]
[1688275772348,0.31357,1913.7,1913.6,6.74925128]
[1688275772759,0.31357,1913.7,1913.6,11.65425128]
[1688275776354,0.31357,1913.7,1913.6,8.44645128]
[1688275776659,0.31357,1913.7,1913.6,11.65425128]
[1688275777366,1.88080677,1913.8,1913.6,11.65425128]
[1688275777552,1.88080677,1913.8,1913.7,2.821]
[1688275777757,1.88080677,1913.8,1913.7,3.13454]
[1688275778057,1.88080677,1913.8,1913.7,3.13787969]
[1688275778258,1.88080677,1913.8,1913.7,8.37067969]
[1688275785355,0.94068,1913.8,1913.7,8.37067969]
[1688275790168,0.31353,1913.9,1913.7,8.37067969]
[1688275790365,0.31353,1913.9,1913.8,6.0208]
[1688275790568,0.31353,1913.9,1913.8,6.33432]
[1688275791172,0.31353,1913.9,1913.8,11.27275094]
[1688275799976,0.31353,1913.9,1913.8,11.68952573]
[1688275806378,0.70424635,1913.9,1913.8,6.44090573]
[1688275806581,0.70424635,1913.9,1913.8,0.42010573]
[1688275807088,1.64437312,1913.9,1913.8,0.42010573]
[1688275807973,1.64437312,1913.9,1913.8,0.00333094]
[1688275808673,0.70424635,1913.9,1913.8,0.00333094]
[1688275808869,1.64437312,1913.9,1913.8,0.00333094]
[1688275809471,1.64437312,1913.9,1913.8,0.31685094]
[1688275810380,0.60024635,1913.9,1913.8,0.31685094]
[1688275812985,1.54037312,1913.9,1913.8,0.31685094]
[1688275814691,0.60024635,1913.9,1913.8,0.31685094]
[1688275814984,1.54037312,1913.9,1913.8,0.31685094]
[1688275815179,0.60024635,1913.9,1913.8,0.31685094]
[1688275815580,1.54037312,1913.9,1913.8,0.31685094]
[1688275838499,1.54037312,1913.9,1913.8,5.38885094]
[1688275849311,7.70639437,1913.9,1913.8,5.38885094]
[1688275853608,7.41967802,1913.9,1913.8,5.38885094]
[1688275857113,1.25365677,1913.9,1913.8,8.29885094]
[1688275857512,1.25365677,1913.9,1913.8,11.50665094]
[1688275859616,1.25365677,1913.9,1913.8,8.29885094]
[1688275861917,1.25365677,1913.9,1913.8,11.50665094]
[1688275863216,1.25365677,1913.9,1913.8,8.29885094]
[1688275865413,0.31356677,1913.9,1913.8,24.0500585]
[1688275865618,0.31351,1913.9,1913.8,24.0500585]
[1688275866214,6.5286789,1914.6,1913.9,5.0]
[1688275866421,5.4839789,1914.7,1914.5,9.15121]
[1688275866714,6.16602125,1914.9,1914.7,0.31338]
[1688275866715,11.65000015,1914.9,1914.7,0.31338]
[1688275866919,5.4839789,1914.9,1914.8,18.87956756]
[1688275867125,7.16064798,1915.2,1914.8,18.87956756]
[1688275867126,5.7972789,1915.2,1914.8,18.87956756]
[1688275867418,5.7972789,1915.2,1914.9,13.32005668]
[1688275867419,0.00783351,1915.0,1914.9,13.32005668]
[1688275867728,0.00783351,1915.0,1914.9,6.80414]
[1688275868022,0.00783351,1915.0,1914.9,6.80724454]
[1688275877421,0.00783351,1915.0,1914.9,7.21659881]
[1688275877625,0.74617908,1915.0,1914.9,7.21659881]
[1688275880434,1.05950908,1915.0,1914.9,7.21659881]
[1688275880629,1.34622543,1915.0,1914.9,7.21659881]
[1688275882234,1.05950908,1915.0,1914.9,7.21659881]
[1688275886538,0.74617908,1915.0,1914.9,7.21659881]
[1688275905364,1.34622543,1915.0,1914.9,7.21659881]
[1688275911667,1.34622543,1915.0,1914.9,19.75265394]
[1688275912366,1.05950908,1915.0,1914.9,19.75265394]
[1688275912869,0.74617908,1915.0,1914.9,19.75265394]
[1688275949987,6.23015798,1915.0,1914.9,19.75265394]
[1688275950190,7.45704768,1915.0,1914.9,19.75265394]
[1688275950488,7.10088589,1915.0,1914.9,19.75265394]
[1688275952292,6.47404254,1915.0,1914.9,19.75265394]
[1688275952489,7.41421589,1915.0,1914.9,19.75265394]
[1688275952785,7.10088589,1915.0,1914.9,19.75265394]
[1688275953894,1.61690699,1915.0,1914.9,19.75265394]
[1688275954191,7.41421589,1915.0,1914.9,19.75265394]
[1688275954888,7.18451828,1915.0,1914.9,19.75265394]
[1688275955096,7.38498877,1915.0,1914.9,19.75265394]
[1688275956492,1.90100987,1915.0,1914.9,19.75265394]
[1688275956992,2.18772622,1915.0,1914.9,19.75265394]
[1688275960700,1.90100987,1915.0,1914.9,19.75265394]
[1688275960906,2.18772622,1915.0,1914.9,19.75265394]
[1688275962399,1.90100987,1915.0,1914.9,19.75265394]
[1688275964501,0.96083652,1915.0,1914.9,19.75265394]
[1688275965300,1.90105722,1915.0,1914.9,19.75265394]
[1688275965503,0.96083652,1915.0,1914.9,19.75265394]
[1688275966101,1.90107155,1915.0,1914.9,19.75265394]
[1688275966300,2.1877879,1915.0,1914.9,19.75265394]
[1688275966491,1.24755287,1915.0,1914.9,19.75265394]
[1688275967601,2.18777681,1915.0,1914.9,19.75265394]
[1688275967798,1.90106046,1915.0,1914.9,19.75265394]
[1688275968807,2.18777681,1915.0,1914.9,19.75265394]
[1688275969104,2.18777681,1915.0,1914.9,16.54485394]
[1688275969402,7.67175571,1915.0,1914.9,4.00879881]
[1688275971207,7.67175571,1915.0,1914.9,16.54582808]
[1688275972310,7.67175571,1915.0,1914.9,0.41245881]
[1688275972506,8.35379806,1915.0,1914.9,0.00310454]
[1688275973107,8.35379806,1915.0,1914.8,2.815]
[1688275973412,7.29930957,1914.9,1914.8,3.23162022]
[1688275973613,7.80936055,1914.9,1914.8,3.23162022]
[1688275974119,7.80936055,1914.9,1914.8,3.23484403]
[1688275975811,7.80936055,1914.9,1914.8,3.54820403]
[1688275976613,7.80936055,1914.9,1914.8,3.23484403]
[1688275977513,7.80936055,1914.9,1914.8,3.54820403]
[1688275981716,7.80936055,1914.9,1914.8,3.23484403]
[1688275983819,7.80936055,1914.9,1914.8,3.54820403]
[1688275984729,2.33109904,1914.9,1914.8,3.54820403]
[1688275986534,7.80936055,1914.9,1914.8,3.54820403]
[1688275987823,2.33109904,1914.9,1914.8,3.54820403]
[1688275990837,7.80936055,1914.9,1914.8,3.54820403]
[1688275992139,7.80936055,1914.9,1914.8,3.53920403]
[1688275993338,7.80936055,1914.9,1914.8,3.22584403]
[1688275998046,7.80936055,1914.9,1914.8,3.53920403]
[1688275999141,7.80936055,1914.9,1914.8,8.49720403]
[1688276000038,7.80936055,1914.9,1914.8,13.63470403]
[1688276004150,7.80936055,1914.9,1914.8,13.32134403]
[1688276004942,7.80936055,1914.9,1914.8,12.90472381]
[1688276010053,7.80936055,1914.9,1914.8,13.21808381]
[1688276010948,2.33109904,1914.9,1914.8,13.21808381]
[1688276012355,7.80906618,1914.9,1914.8,13.21808381]
[1688276012852,2.33109904,1914.9,1914.8,12.90472381]
[1688276013154,8.49712029,1914.9,1914.8,12.90472381]
[1688276013949,2.33109904,1914.9,1914.8,12.90472381]
[1688276014154,8.49712029,1914.9,1914.8,12.90472381]
[1688276017451,8.49712029,1914.9,1914.8,13.21808381]
[1688276018549,8.49712029,1914.9,1914.8,25.75620656]
[1688276019551,8.49712029,1914.9,1914.8,13.21808381]
[1688276020651,8.49712029,1914.9,1914.8,25.75621525]
[1688276021859,8.49712029,1914.9,1914.8,25.75619484]
[1688276024156,8.49712029,1914.9,1914.8,13.21808381]
[1688276029662,7.92963617,1914.9,1914.8,25.75619292]
[1688276031060,7.92963617,1914.9,1914.8,13.21808381]
[1688276032064,7.92963617,1914.9,1914.8,25.75620767]
[1688276032260,7.92963617,1914.9,1914.8,13.21808381]
[1688276033665,7.92963617,1914.9,1914.8,25.75626592]
[1688276042871,7.92963617,1914.9,1914.8,28.97106592]
[1688276042872,13.1001805,1914.9,1914.8,28.97106592]
[1688276043075,6.93415925,1914.9,1914.8,29.07506592]
[1688276044068,7.24749925,1914.9,1914.8,29.07506592]
[1688276046070,1.76361492,1914.9,1914.8,29.07506592]
[1688276046372,0.51005098,1914.9,1914.8,29.07506592]
[1688276046768,5.48794829,1915.1,1914.8,29.07506592]
[1688276046975,0.47022112,1914.9,1914.8,10.51608381]
[1688276047170,5.48794829,1915.1,1914.8,16.53688381]
[1688276047171,6.42813256,1915.1,1914.8,16.53688381]
[1688276047370,0.94424823,1915.1,1915.0,6.0288]
[1688276047671,0.31737396,1915.1,1915.0,18.87788373]
[1688276048071,0.31737396,1915.1,1915.0,18.88097953]
[1688276051477,0.00406396,1915.1,1915.0,6.3452158]
[1688276052276,0.31737396,1915.1,1915.0,11.5187158]
[1688276054479,0.80254895,1915.1,1915.0,11.5187158]
[1688276058190,0.80254895,1915.1,1915.0,16.6619158]
[1688276058386,0.80254895,1915.1,1915.0,13.4541158]
[1688276060898,0.80254895,1915.1,1915.0,13.8784953]
[1688276061493,1.0892653,1915.1,1915.0,13.8784953]
[1688276062793,0.80254895,1915.1,1915.0,13.8784953]
[1688276066105,1.0892653,1915.1,1915.0,3.5617953]
[1688276068205,2.02953525,1915.1,1915.0,3.5617953]
[1688276068907,1.0892653,1915.1,1915.0,3.5617953]
[1688276069612,2.02953608,1915.1,1915.0,3.5617953]
[1688276071304,7.51342041,1915.1,1915.0,3.5617953]
[1688276073210,7.51342041,1915.1,1915.0,3.1374158]
[1688276074303,7.51342041,1915.1,1915.0,2.8240958]
[1688276074507,11.01455733,1915.1,1915.0,0.0030958]
[1688276074704,14.22235733,1915.1,1915.0,0.0030958]
[1688276075210,11.40335733,1915.1,1914.9,3.11934]
[1688276075405,6.41402349,1915.0,1914.9,3.11934]
[1688276075610,7.1025418,1915.0,1914.9,3.11934]
[1688276076108,7.1025418,1915.0,1914.9,3.12244454]
[1688276078810,7.1025418,1915.0,1914.9,2.80910454]
[1688276082203,7.1025418,1915.0,1914.9,0.00310454]
[1688276085218,7.1025418,1915.0,1914.9,0.31644454]
[1688276087821,7.1025418,1915.0,1914.9,0.00310454]
[1688276089609,9.9185418,1915.0,1914.9,0.00310454]
[1688276089816,9.15050946,1915.0,1914.9,0.00310454]
[1688276090114,24.66585744,1915.0,1914.7,0.00783351]
[1688276090423,9.28812456,1914.8,1914.7,0.00783351]
[1688276090616,10.39663101,1914.8,1914.7,0.00783351]
[1688276091123,10.39663101,1914.8,1914.7,0.01084274]
[1688276091318,4.23786645,1914.8,1914.7,0.01084274]
[1688276091518,10.39663101,1914.8,1914.7,0.01084274]
[1688276091923,20.81123101,1914.8,1914.7,0.01084274]
[1688276093816,29.47923101,1914.8,1914.7,0.01084274]
[1688276099528,29.90322711,1914.8,1914.7,0.01084274]
[1688276100227,23.74446255,1914.8,1914.7,0.01084274]
[1688276100430,29.90322711,1914.8,1914.7,0.01084274]
[1688276115436,19.48862711,1914.8,1914.7,0.01084274]
[1688276116338,13.32986255,1914.8,1914.7,0.01084274]
[1688276116639,19.48862711,1914.8,1914.7,0.01084274]
[1688276117049,13.32986255,1914.8,1914.7,0.01084274]
[1688276117337,19.48862711,1914.8,1914.7,0.01084274]
[1688276117741,13.32986255,1914.8,1914.7,0.01084274]
[1688276117943,19.48862711,1914.8,1914.7,0.01084274]
[1688276118144,10.82062711,1914.8,1914.7,0.01084274]
[1688276118346,10.12813673,1914.8,1914.7,0.01084274]
[1688276118850,10.12813673,1914.8,1914.7,0.11484274]
[1688276119435,10.12813673,1914.8,1914.7,5.05774274]
[1688276119847,0.48159567,1914.8,1914.7,5.37112274]
[1688276120040,9.06767418,1914.9,1914.7,8.57892274]
[1688276120245,0.43609865,1914.8,1914.7,11.39392274]
[1688276122051,0.43609865,1914.8,1914.7,11.39992274]
[1688276124453,0.43609865,1914.8,1914.7,8.19212274]
[1688276124766,3.538815,1914.8,1914.7,5.05774274]
[1688276125058,4.47925377,1914.8,1914.7,4.95374274]
[1688276125254,9.94552795,1914.8,1914.7,4.95374274]
[1688276128759,9.6588116,1914.8,1914.7,4.95374274]
[1688276129262,9.6588116,1914.8,1914.7,5.26712274]
[1688276129463,9.94552795,1914.8,1914.7,5.26712274]
[1688276130748,9.6588116,1914.8,1914.7,5.26712274]
[1688276132051,6.8428116,1914.8,1914.7,8.08812274]
[1688276132557,6.8428116,1914.8,1914.7,5.26712274]
[1688276133059,6.8428116,1914.8,1914.7,5.2697289]
[1688276134756,7.12952795,1914.8,1914.7,5.2697289]
[1688276137250,6.8428116,1914.8,1914.7,5.2697289]
[1688276137452,7.12952795,1914.8,1914.7,5.2697289]
[1688276137863,7.12952795,1914.8,1914.7,4.9563489]
[1688276138560,15.79752795,1914.8,1914.7,0.0134489]
[1688276138770,18.61552795,1914.8,1914.7,0.0134489]
[1688276139057,19.99660175,1914.8,1914.7,0.00783351]
[1688276139263,24.80450175,1914.8,1914.7,0.00783351]
[1688276141061,24.80450175,1914.8,1914.7,0.01345726]
[1688276145461,9.28915377,1914.8,1914.7,0.01345726]
[1688276145963,4.48125377,1914.8,1914.7,0.01345726]
[1688276147566,4.19453742,1914.8,1914.7,0.01345726]
[1688276147865,10.35530366,1914.8,1914.7,0.01345726]
[1688276148462,10.64202001,1914.8,1914.7,0.01345726]
[1688276153369,10.35530366,1914.8,1914.7,0.01345726]
[1688276158874,10.35530366,1914.8,1914.7,0.4402751]
[1688276159176,10.35530366,1914.8,1914.7,5.15015726]
[1688276162078,7.53730366,1914.8,1914.7,5.15015726]
[1688276164779,7.53730366,1914.8,1914.7,5.46352726]
[1688276165077,7.53730366,1914.8,1914.7,5.15015726]
[1688276165577,7.82402001,1914.8,1914.7,5.15015726]
[1688276168180,7.53730366,1914.8,1914.7,5.15015726]
[1688276171586,7.82402001,1914.8,1914.7,5.15015726]
[1688276171783,7.82402001,1914.8,1914.7,0.01345726]
[1688276171985,1.66325377,1914.8,1914.7,0.01345726]
[1688276172185,4.48125377,1914.8,1914.7,0.00783351]
[1688276172380,11.32860175,1914.8,1914.7,0.00783351]
[1688276173079,11.32860175,1914.8,1914.7,0.01345663]
[1688276184484,11.0418854,1914.8,1914.7,0.01345663]
[1688276184785,11.0418854,1914.8,1914.7,0.32682663]
[1688276184982,4.19453742,1914.8,1914.7,0.32682663]
[1688276185990,10.36102031,1914.8,1914.7,0.32682663]
[1688276186886,4.19453742,1914.8,1914.7,0.32682663]
[1688276187185,10.36130162,1914.8,1914.7,0.32682663]
[1688276187786,10.36130162,1914.8,1914.7,3.53462663]
[1688276191186,10.64801797,1914.8,1914.7,3.53462663]
[1688276191385,10.36130162,1914.8,1914.7,3.53462663]
[1688276192084,7.54330162,1914.8,1914.7,3.53462663]
[1688276192277,7.67893683,1914.8,1914.7,3.53462663]
[1688276194788,7.96565318,1914.8,1914.7,3.53462663]
[1688276199191,7.67893683,1914.8,1914.7,3.53462663]
[1688276201696,6.99290491,1914.8,1914.7,3.53462663]
[1688276202190,6.99290491,1914.8,1914.7,6.35562663]
[1688276208899,7.27962126,1914.8,1914.7,6.35562663]
[1688276210202,6.99290491,1914.8,1914.7,6.35562663]
[1688276211293,7.27962126,1914.8,1914.7,6.35562663]
[1688276212904,6.99290491,1914.8,1914.7,6.35562663]
[1688276216306,7.27962126,1914.8,1914.7,6.35562663]
[1688276216905,6.99290491,1914.8,1914.7,6.35562663]
[1688276217911,7.27962126,1914.8,1914.7,6.35562663]
[1688276222015,6.99290491,1914.8,1914.7,6.35562663]
[1688276222509,7.27962126,1914.8,1914.7,6.35562663]
[1688276225223,1.79888898,1914.8,1914.7,6.35562663]
[1688276225412,1.51217263,1914.8,1914.7,6.35562663]
[1688276226313,1.51217263,1914.8,1914.7,3.14782663]
[1688276226513,7.96565318,1914.8,1914.7,3.14782663]
[1688276232123,7.96565318,1914.8,1914.7,0.32682663]
[1688276236621,7.67893683,1914.8,1914.7,12.86541317]
[1688276236819,7.67893683,1914.8,1914.7,0.32682663]
[1688276238325,7.67893683,1914.8,1914.7,12.86543014]
[1688276239929,7.96565318,1914.8,1914.7,0.32682663]
[1688276240125,7.96565318,1914.8,1914.7,12.86543779]
[1688276240524,7.67893683,1914.8,1914.7,12.86543779]
[1688276244132,7.67893683,1914.8,1914.7,16.07323779]
[1688276246931,7.67893683,1914.8,1914.7,12.86543779]
[1688276247323,7.96565318,1914.8,1914.7,16.07323779]
[1688276247529,7.96565318,1914.8,1914.7,3.53462663]
[1688276248638,7.96565318,1914.8,1914.7,0.32682663]
[1688276265048,7.67893683,1914.8,1914.7,0.32682663]
[1688276267746,0.25837386,1914.8,1914.7,18.88620492]
[1688276268044,3.60538396,1915.1,1914.9,0.31333]
[1688276268045,0.00406396,1915.1,1914.9,0.31333]
[1688276268238,0.00406396,1915.1,1915.0,18.87469829]
[1688276268440,7.7694,1915.5,1915.0,18.87469829]
[1688276268637,7.7694,1915.5,1915.4,0.31325]
[1688276269245,7.7694,1915.5,1915.4,0.31881869]
[1688276269546,8.05611635,1915.5,1915.4,0.31881869]
[1688276270146,8.05611635,1915.5,1915.3,3.2078]
[1688276270347,0.56748412,1915.4,1915.3,3.2078]
[1688276270542,3.38648412,1915.4,1915.3,3.2078]
[1688276270746,3.38648412,1915.4,1915.3,3.1574]
[1688276271440,3.38648412,1915.4,1915.1,3.2078]
[1688276271642,2.818,1915.2,1914.9,3.52112]
[1688276271843,2.818,1915.2,1914.9,3.2078]
[1688276271844,2.816,1915.0,1914.9,3.2078]
[1688276272046,2.816,1915.0,1914.7,3.21563351]
[1688276272244,2.819,1914.8,1914.7,3.52899351]
[1688276272551,3.38648412,1914.8,1914.7,3.52899351]
[1688276273142,3.38648412,1914.8,1914.7,3.53442391]
[1688276275449,3.64902567,1914.8,1914.7,3.53442391]
[1688276288978,3.64602567,1914.8,1914.7,3.53442391]
[1688276292187,0.83002567,1914.8,1914.7,3.53442391]
[1688276292382,0.26254155,1914.8,1914.7,3.53442391]
[1688276292782,8.34321635,1914.9,1914.7,3.53442391]
[1688276292989,0.26158258,1914.8,1914.7,3.53442391]
[1688276293189,8.34321635,1914.9,1914.7,3.53442391]
[1688276293384,8.34321635,1914.9,1914.7,8.39162391]
[1688276293685,0.2615528,1914.8,1914.7,8.39162391]
[1688276294082,8.34321635,1914.9,1914.7,8.39162391]
[1688276294283,0.26151413,1914.8,1914.7,8.39162391]
[1688276294483,8.34321635,1914.9,1914.7,8.39162391]
[1688276294793,0.26148676,1914.8,1914.7,8.39162391]
[1688276294980,8.0565,1914.9,1914.7,8.39162391]
[1688276295182,0.26145939,1914.8,1914.7,8.39162391]
[1688276295583,8.0565,1914.9,1914.7,8.39162391]
[1688276295787,0.26143013,1914.8,1914.7,8.39162391]
[1688276295987,8.34321635,1914.9,1914.7,8.39162391]
[1688276296190,0.26140442,1914.8,1914.7,8.39162391]
[1688276296486,8.34321635,1914.9,1914.7,8.39162391]
[1688276296691,0.26137713,1914.8,1914.7,8.39162391]
[1688276297087,8.34321635,1914.9,1914.7,8.39162391]
[1688276297286,0.26134956,1914.8,1914.7,8.39162391]
[1688276297482,8.34321635,1914.9,1914.7,8.39162391]
[1688276297689,0.26132217,1914.8,1914.7,8.39162391]
[1688276298097,8.34321635,1914.9,1914.7,8.39162391]
[1688276298298,0.26129247,1914.8,1914.7,8.39162391]
[1688276298598,8.34321635,1914.9,1914.7,8.39162391]
[1688276298795,0.26126727,1914.8,1914.7,8.39162391]
[1688276299102,8.34321635,1914.9,1914.7,8.39162391]
[1688276299291,0.26123971,1914.8,1914.7,8.39162391]
[1688276299489,5.53421635,1914.9,1914.7,8.39162391]
[1688276299690,3.07021228,1914.8,1914.7,8.39162391]
[1688276305497,3.6376964,1914.8,1914.7,8.39162391]
[1688276306196,3.07021228,1914.8,1914.7,8.39162391]
[1688276306390,3.07021228,1914.8,1914.7,20.92794206]
[1688276312304,0.26121228,1914.8,1914.7,20.92794206]
[1688276312507,6.41503047,1914.9,1914.7,20.92794206]
[1688276312707,6.41503047,1914.9,1914.8,12.84966815]
[1688276313097,6.41503047,1914.9,1914.8,12.8550847]
[1688276314598,5.84754635,1914.9,1914.8,12.8550847]
[1688276316417,6.78777049,1914.9,1914.8,12.8550847]
[1688276320206,6.50105414,1914.9,1914.8,12.8550847]
[1688276320811,6.18772414,1914.9,1914.8,12.8550847]
[1688276321605,6.50105414,1914.9,1914.8,12.8550847]
[1688276321806,0.94022414,1914.9,1914.8,12.8550847]
[1688276326414,6.83264851,1915.0,1914.8,12.8550847]
[1688276326615,6.83264851,1915.0,1914.9,12.53631815]
[1688276326815,6.83264851,1915.0,1914.9,12.84964815]
[1688276327210,6.83264851,1915.0,1914.9,12.8550558]
[1688276327611,7.15791483,1915.0,1914.9,12.8550558]
[1688276330311,7.44463118,1915.0,1914.9,12.8550558]
[1688276331409,7.75795118,1915.0,1914.9,12.8550558]
[1688276332116,10.56695118,1915.0,1914.9,12.8550558]
[1688276349327,10.28023483,1915.0,1914.9,12.8550558]
[1688276350027,10.25363118,1915.0,1914.9,12.8550558]
[1688276350231,1.26549046,1915.0,1914.9,3.52653765]
[1688276350528,0.42687643,1915.0,1914.9,16.06418787]
[1688276350729,0.42687643,1915.0,1914.9,21.27658787]
[1688276351232,5.91081475,1915.0,1914.9,21.27658787]
[1688276351432,6.85103889,1915.0,1914.9,21.27658787]
[1688276352230,5.91081475,1915.0,1914.9,21.27118022]
[1688276353134,0.42687643,1915.0,1914.9,21.27659045]
[1688276374255,0.42687643,1915.0,1914.9,21.27471526]
[1688276379452,0.42687643,1915.0,1914.9,24.09571526]
[1688276380545,1.36710057,1915.0,1914.9,24.09571526]
[1688276384655,0.42687643,1915.0,1914.9,24.09571526]
[1688276385561,1.36706094,1915.0,1914.9,24.09571526]
[1688276386346,0.42687643,1915.0,1914.9,24.09571526]
[1688276388556,1.36705186,1915.0,1914.9,24.09571526]
[1688276388756,0.42687643,1915.0,1914.9,24.09571526]
[1688276394365,1.36704426,1915.0,1914.9,24.09571526]
[1688276396672,0.42687643,1915.0,1914.9,24.09571526]
[1688276398471,1.36704194,1915.0,1914.9,24.09571526]
[1688276399374,0.42687643,1915.0,1914.9,24.09571526]
[1688276400973,0.71359278,1915.0,1914.9,24.09571526]
[1688276401670,1.65376838,1915.0,1914.9,24.09571526]
[1688276402072,1.65376838,1915.0,1914.9,24.08971526]
[1688276402269,1.96708838,1915.0,1914.9,18.87731526]
[1688276402878,1.96708838,1915.0,1914.9,16.06231526]
[1688276403180,7.4510267,1915.0,1914.9,16.06231526]
[1688276403573,1.96708838,1915.0,1914.9,16.06231526]
[1688276403769,7.4510267,1915.0,1914.9,16.06231526]
[1688276405380,1.96708838,1915.0,1914.9,16.06231526]
[1688276405880,1.54021195,1915.0,1914.9,16.06231526]
[1688276407485,7.02415027,1915.0,1914.9,16.06231526]
[1688276407780,1.54021195,1915.0,1914.9,16.06231526]
[1688276409379,1.2534956,1915.0,1914.9,16.06231526]
[1688276410787,1.54021195,1915.0,1914.9,16.06231526]
[1688276411288,1.2534956,1915.0,1914.9,16.06231526]
[1688276411485,0.9401756,1915.0,1914.9,16.06231526]
[1688276411687,0.31332,1915.0,1914.9,16.06231526]
[1688276412088,11.29572832,1915.1,1914.9,18.88331526]
[1688276412288,11.29572832,1915.1,1915.0,12.53577503]
[1688276412490,11.29572832,1915.1,1915.0,12.84909503]
[1688276412491,12.2358977,1915.1,1915.0,12.84909503]
[1688276412787,12.58757026,1915.1,1915.0,12.84909503]
[1688276413184,12.58757026,1915.1,1915.0,12.85449636]
[1688276423507,6.48906391,1915.1,1915.0,12.85449636]
[1688276425905,6.48906391,1915.1,1915.0,13.27142481]
[1688276427206,6.80236391,1915.1,1915.0,13.27142481]
[1688276427705,6.48906391,1915.1,1915.0,13.27142481]
[1688276430599,7.08908026,1915.1,1915.0,13.27142481]
[1688276438514,6.80236391,1915.1,1915.0,13.27142481]
[1688276439319,7.08908026,1915.1,1915.0,13.27142481]
[1688276439820,6.80236391,1915.1,1915.0,13.27142481]
[1688276440811,7.15569308,1915.1,1915.0,13.27142481]
[1688276441312,6.84239308,1915.1,1915.0,13.27142481]
[1688276441623,1.35845476,1915.1,1915.0,13.27142481]
[1688276441916,0.41828538,1915.1,1915.0,13.27142481]
[1688276442220,0.41828538,1915.1,1915.0,16.09242481]
[1688276447719,5.9022237,1915.1,1915.0,16.09242481]
[1688276447910,6.84239308,1915.1,1915.0,16.09242481]
[1688276459627,5.9022237,1915.1,1915.0,17.69638502]
[1688276460035,6.18894005,1915.1,1915.0,16.09242481]
[1688276460238,7.12910943,1915.1,1915.0,16.09242481]
[1688276460433,7.44240943,1915.1,1915.0,16.09242481]
[1688276460934,7.15569308,1915.1,1915.0,16.09242481]
[1688276464133,7.15569308,1915.1,1915.0,19.30022481]
[1688276467341,6.84239308,1915.1,1915.0,19.30022481]
[1688276469536,7.12910943,1915.1,1915.0,19.30022481]
[1688276470141,6.84239308,1915.1,1915.0,19.30022481]
[1688276471247,15.79710943,1915.1,1915.0,0.00706032]
[1688276471443,23.34012365,1915.1,1914.7,0.00783351]
[1688276471638,8.30160557,1914.8,1914.7,0.32120351]
[1688276471841,9.55512495,1914.8,1914.7,0.00783351]
[1688276472344,9.55512495,1914.8,1914.7,0.01330656]
[1688276474141,8.61495557,1914.8,1914.7,0.01330656]
[1688276474537,9.55512495,1914.8,1914.7,0.01330656]
[1688276474746,8.61495557,1914.8,1914.7,0.01330656]
[1688276475040,3.13235,1914.8,1914.7,0.01330656]
[1688276475243,8.61495557,1914.8,1914.7,0.01330656]
[1688276475742,3.13235,1914.8,1914.7,0.01330656]
[1688276476151,3.27887069,1914.8,1914.7,0.01330656]
[1688276476635,3.27887069,1914.8,1914.7,0.32667656]
[1688276480140,0.14652069,1914.8,1914.7,6.63619291]
[1688276480348,0.78339,1914.9,1914.7,6.63619291]
[1688276480749,0.342388,1914.8,1914.7,6.63619291]
[1688276481252,0.78339,1914.9,1914.7,7.20367703]
[1688276481454,0.34263476,1914.8,1914.7,7.20367703]
[1688276481957,0.78339,1914.9,1914.7,7.20367703]
[1688276482143,0.78339,1914.9,1914.8,3.12835]
[1688276483450,0.78339,1914.9,1914.8,3.13381406]
[1688276487358,0.31334,1915.0,1914.8,3.13381406]
[1688276487560,0.31334,1915.0,1914.9,2.821]
[1688276487760,0.31334,1915.0,1914.9,8.13844]
[1688276487953,1.25350938,1915.0,1914.9,8.13844]
[1688276488253,0.31334,1915.0,1914.9,8.14389506]
[1688276488446,1.25350938,1915.0,1914.9,8.14389506]
[1688276488650,0.31334,1915.0,1914.9,8.14389506]
[1688276489453,1.25350938,1915.0,1914.9,8.43061141]
[1688276489752,0.31334,1915.0,1914.9,8.43061141]
[1688276489958,1.25350938,1915.0,1914.9,8.43061141]
[1688276490157,0.31334,1915.0,1914.9,8.43061141]
[1688276490357,0.31334,1915.0,1914.9,8.14389506]
[1688276490956,1.25350938,1915.0,1914.9,8.43061141]
[1688276491156,1.59902846,1915.0,1914.9,8.43061141]
[1688276491452,0.65885908,1915.0,1914.9,8.43061141]
[1688276491858,1.59902846,1915.0,1914.9,8.43061141]
[1688276492056,0.65885908,1915.0,1914.9,8.43061141]
[1688276492558,1.59902846,1915.0,1914.9,8.43061141]
[1688276493059,0.65885908,1915.0,1914.9,8.43061141]
[1688276493357,0.65885908,1915.0,1914.9,13.50161141]
[1688276494760,1.59902846,1915.0,1914.9,13.50161141]
[1688276495062,0.65885908,1915.0,1914.9,13.50161141]
[1688276495258,1.59902846,1915.0,1914.9,13.50161141]
[1688276495864,0.65885908,1915.0,1914.9,13.50161141]
[1688276497373,0.65883908,1915.0,1914.9,13.50161141]